{"text_format":"1","workbook":"xlsx","n_sheets":7,"sheets":["PRODUCTION","ITEMS","CYBER WARFARE DIVISION","WORKBENCH","PHARMACY","ARMOR BENCH","VARIABLES"],"not_rendered":{"charts":0,"images":7,"macros":1,"external_links":0,"defined_names":19,"comments":0,"pivot_tables":0},"unopened":[],"bounds":{"document_bytes":16777216,"sheet_cells":100000,"rows_first":2000,"rows_last":500,"rows_between":2000,"halvings":0,"cell_chars":16384,"cell_head_chars":4096},"cells_cut":0,"cells_raw":0,"read":"whole","date_system":"1900"}

{"sheet":"PRODUCTION","index":0,"n_rows":78,"n_cols":24,"rows_kept":78,"cut":false,"hidden":false,"merged":[[25,2,25,5],[25,13,25,14],[16,13,16,14],[17,13,17,14],[18,13,18,14],[19,13,19,14],[20,13,20,14],[24,13,24,14],[21,13,21,14],[22,13,22,14],[23,13,23,14],[1,9,3,11],[0,15,6,16],[1,0,5,6],[7,2,7,5],[16,2,16,5],[15,13,15,14],[9,13,9,14],[10,13,10,14],[11,13,11,14],[12,13,12,14],[13,13,13,14],[34,2,34,5],[0,7,0,14],[43,1,43,5],[33,13,33,14],[34,13,34,14],[35,13,35,14],[26,13,26,14],[27,13,27,14],[28,13,28,14],[29,13,29,14],[30,13,30,14],[41,13,41,14],[42,13,42,14],[43,13,43,14],[1,7,3,8],[14,13,14,14],[46,13,46,14],[0,2,0,6],[31,13,31,14],[32,13,32,14],[44,13,44,14],[45,13,45,14],[36,13,36,14],[37,13,37,14],[38,13,38,14],[39,13,39,14],[40,13,40,14],[44,2,46,6],[4,7,5,7],[4,13,5,14],[7,13,7,14],[8,13,8,14]]}
[null,"DELTAFORCE produktie","Samenstelling van de te produceren produkten"]
[{"$error":"#VALUE!"},null,null,null,null,null,null,"28-08-2025",null,"Selecteer een type. Je kunt het plaatsen waar je wilt. De winst verschijnt als de verkoopprijs is ingevuld.\nHet pad naar de afbeeldingen kun je opgeven in het werkblad Lijsten in veld B183"]
[null,null,null,null,null,null,null,null,null,null,null,null,"Totaal"]
[null,null,null,null,null,null,null,null,null,null,null,null,{"$f":"SUM(J6:M6)","v":368464.5}]
[null,null,null,null,null,null,null,null,null,"CYBER WARFARE DIVISION","WORKBENCH","PHARMACY","AMOR BENCH"]
[null,null,null,null,null,null,null,null,null,{"$f":"SUMIF(TYPE,\"OC\",WINST)","v":30398},{"$f":"SUMIF(TYPE,\"OW\",WINST)","v":194735.5},{"$f":"SUMIF(TYPE,\"OP\",WINST)","v":22006},{"$f":"SUMIF(TYPE,\"OA\",WINST)","v":121325}]
["Onderdeel","Product","J/N","Samengesteld uit:","Aantal","Inkoopprijs","Relatieve inkoopprijs",{"$f":"MAX(H8:H47)","v":4},"Type","Produkt",null,"Inkoop prijs","Verkoop prijs","Winst"]
["OC","Adv. Thermal Fusion Holograsphic Sight","     CYBER WARFARE DIVISION",null,null,null,{"$f":"SUM(G9:G16)","v":89402},{"$f":"IF(I8=\"\",\"\",1)","v":1},"OC","Adv. Thermal Fusion Holograsphic Sight",null,89402,119800,{"$f":"IF(M8=\"\",\"\",M8-L8)","v":30398},null,null,null,null,null,null,null,null,"DELTAFORCE production","DELTAFORCE produktie"]
["A",{"$f":"IFERROR(IF(VLOOKUP($B$8,B_CYBER_ALL,3,FALSE)=\"\",\"\",VLOOKUP($B$8,B_CYBER_ALL,3,FALSE)),\"\")","v":"Damaged Thermal Imager"},{"$f":"IF(B9=\"\",\"\",VLOOKUP(B9,A_ITEMS_ALL,11,FALSE))","v":"N"},null,{"$f":"IF(VLOOKUP($B$8,B_CYBER_ALL,2,FALSE)=\"\",\"\",VLOOKUP($B$8,B_CYBER_ALL,2,FALSE))","v":1},{"$f":"IF(B9<>\"\",IF(C9=\"N\",VLOOKUP(B9,A_ITEMS_ALL,10,FALSE),\"\"),\"\")","v":50880},{"$f":"IF(C9=\"J\",\"\",IF(B9=\"\",\"\",F9*E9))","v":50880},{"$f":"IF(I9=\"\",\"\",MAX($H$8:H8)+1)","v":""},null,null,null,null,null,{"$f":"IF(M9=\"\",\"\",M9-L9)","v":""},null,null,null,null,null,null,null,null,"Composition of the products to be produced","Samenstelling van de te produceren produkten"]
["A1",null,null,{"$f":"_xlfn.IFNA(IF(B9=\"\",\"\",IF(VLOOKUP($B9,A_ITEMS_ALL,3,FALSE)=0,\"\",VLOOKUP($B9,A_ITEMS_ALL,3,FALSE))),\"\")","v":""},{"$f":"IF(B9=\"\",\"\",IF(VLOOKUP($B9,A_ITEMS_ALL,4,FALSE)=0,\"\",VLOOKUP($B9,A_ITEMS_ALL,4,FALSE)))","v":""},{"$f":"_xlfn.IFNA(VLOOKUP(D10,A_ITEMS_ALL,10,FALSE),\"\")","v":""},{"$f":"IF(F10=\"\",\"\",SUM($F10/_xlfn.IFNA(IF($C9=\"N\",\"\",VLOOKUP($B9,A_ITEMS_ALL,2,FALSE)),\"\"))*$E9)","v":""},{"$f":"IF(I10=\"\",\"\",MAX($H$8:H9)+1)","v":""},null,null,null,null,null,""]
["A2",null,null,{"$f":"_xlfn.IFNA(IF(B9=\"\",\"\",IF(VLOOKUP($B9,A_ITEMS_ALL,5,FALSE)=0,\"\",VLOOKUP($B9,A_ITEMS_ALL,5,FALSE))),\"\")","v":""},{"$f":"IF(B9=\"\",\"\",IF(VLOOKUP($B9,A_ITEMS_ALL,6,FALSE)=0,\"\",VLOOKUP($B9,A_ITEMS_ALL,6,FALSE)))","v":""},{"$f":"_xlfn.IFNA(VLOOKUP(D11,A_ITEMS_ALL,10,FALSE),\"\")","v":""},{"$f":"IF(F11=\"\",\"\",SUM($F11/_xlfn.IFNA(IF($C9=\"N\",\"\",VLOOKUP($B9,A_ITEMS_ALL,2,FALSE)),\"\"))*$E9)","v":""},{"$f":"IF(I11=\"\",\"\",MAX($H$8:H10)+1)","v":""},null,null,null,null,null,"",null,null,null,null,null,null,null,null,"Select a type. You can place it anywhere you like. The profit will appear when the sales price is entered.\nYou can specify the path to the images in the Lists worksheet in field B183.","Selecteer een type. Je kunt het plaatsen waar je wilt. De winst verschijnt als de verkoopprijs is ingevuld.\nHet pad naar de afbeeldingen kun je opgeven in het werkblad Lijsten in veld B183"]
["A3",null,null,{"$f":"_xlfn.IFNA(IF(B9=\"\",\"\",IF(VLOOKUP($B9,A_ITEMS_ALL,7,FALSE)=0,\"\",VLOOKUP($B9,A_ITEMS_ALL,7,FALSE))),\"\")","v":""},{"$f":"IF(B9=\"\",\"\",IF(VLOOKUP($B9,A_ITEMS_ALL,8,FALSE)=0,\"\",VLOOKUP($B9,A_ITEMS_ALL,8,FALSE)))","v":""},{"$f":"_xlfn.IFNA(VLOOKUP(D12,A_ITEMS_ALL,10,FALSE),\"\")","v":""},{"$f":"IF(F12=\"\",\"\",SUM($F12/_xlfn.IFNA(IF($C9=\"N\",\"\",VLOOKUP($B9,A_ITEMS_ALL,2,FALSE)),\"\"))*$E9)","v":""},{"$f":"IF(I12=\"\",\"\",MAX($H$8:H11)+1)","v":""},null,null,null,null,null,"",null,null,null,null,null,null,null,null,"Total","Totaal"]
["B",{"$f":"IFERROR(IF(VLOOKUP($B$8,B_CYBER_ALL,5,FALSE)=\"\",\"\",VLOOKUP($B$8,B_CYBER_ALL,5,FALSE)),\"\")","v":"Firtearm Parts"},{"$f":"IF(B13=\"\",\"\",VLOOKUP(B13,A_ITEMS_ALL,11,FALSE))","v":"N"},null,{"$f":"IF(VLOOKUP($B$8,B_CYBER_ALL,4,FALSE)=\"\",\"\",VLOOKUP($B$8,B_CYBER_ALL,4,FALSE))","v":1},{"$f":"IFERROR(VLOOKUP(B13,A_ITEMS_ALL,10,FALSE),\"\")","v":17654},{"$f":"IFERROR(IF(B13=\"\",\"\",F13*E13),\"\")","v":17654},{"$f":"IF(I13=\"\",\"\",MAX($H$8:H12)+1)","v":""},null,null,null,null,null,"",null,null,null,null,null,null,null,null,"Part","Onderdeel"]
["C",{"$f":"IFERROR(IF(VLOOKUP($B$8,B_CYBER_ALL,7,FALSE)=\"\",\"\",VLOOKUP($B$8,B_CYBER_ALL,7,FALSE)),\"\")","v":"Wood Board"},{"$f":"IF(B14=\"\",\"\",VLOOKUP(B14,A_ITEMS_ALL,11,FALSE))","v":"N"},null,{"$f":"IF(VLOOKUP($B$8,B_CYBER_ALL,6,FALSE)=\"\",\"\",VLOOKUP($B$8,B_CYBER_ALL,6,FALSE))","v":3},{"$f":"IFERROR(VLOOKUP(B14,A_ITEMS_ALL,10,FALSE),\"\")","v":4550},{"$f":"IFERROR(IF(B14=\"\",\"\",F14*E14),\"\")","v":13650},{"$f":"IF(I14=\"\",\"\",MAX($H$8:H13)+1)","v":""},null,null,null,null,null,"",null,null,null,null,null,null,null,null,"Product","Product"]
["D",{"$f":"IFERROR(IF(VLOOKUP($B$8,B_CYBER_ALL,9,FALSE)=\"\",\"\",VLOOKUP($B$8,B_CYBER_ALL,9,FALSE)),\"\")","v":"LED Light"},{"$f":"IF(B15=\"\",\"\",VLOOKUP(B15,A_ITEMS_ALL,11,FALSE))","v":"N"},null,{"$f":"IF(VLOOKUP($B$8,B_CYBER_ALL,8,FALSE)=\"\",\"\",VLOOKUP($B$8,B_CYBER_ALL,8,FALSE))","v":2},{"$f":"IFERROR(VLOOKUP(B15,A_ITEMS_ALL,10,FALSE),\"\")","v":3609},7218,{"$f":"IF(I15=\"\",\"\",MAX($H$8:H14)+1)","v":""},null,null,null,null,null,"",null,null,null,null,null,null,null,null,"Y/N","J/N"]
["E",{"$f":"IFERROR(IF(VLOOKUP($B$8,B_CYBER_ALL,11,FALSE)=\"\",\"\",VLOOKUP($B$8,B_CYBER_ALL,11,FALSE)),\"\")","v":""},{"$f":"IF(B16=\"\",\"\",VLOOKUP(B16,A_ITEMS_ALL,11,FALSE))","v":""},null,{"$f":"IFERROR(IF(VLOOKUP($B$8,B_CYBER_ALL,10,FALSE)=\"\",\"\",VLOOKUP($B$8,B_CYBER_ALL,10,FALSE)),\"\")","v":""},{"$f":"IFERROR(VLOOKUP(B16,A_ITEMS_ALL,10,FALSE),\"\")","v":""},"",{"$f":"IF(I16=\"\",\"\",MAX($H$8:H15)+1)","v":""},null,null,null,null,null,"",null,null,null,null,null,null,null,null,"Composed:","Samengesteld uit:"]
["OW","6.8x51mm Hybrid","     WORKBENCH",null,null,null,{"$f":"SUM(G18:G25)","v":249663.5},{"$f":"IF(I17=\"\",\"\",MAX($H$8:H16)+1)","v":2},"OW","6.8x51mm Hybrid",null,249663.5,444399,194735.5,null,null,null,null,null,null,null,null,"Number","Aantal"]
["A",{"$f":"IFERROR(IF(VLOOKUP($B$17,C_WORKBENCH_ALL,3,FALSE)=\"\",\"\",VLOOKUP($B$17,C_WORKBENCH_ALL,3,FALSE)),\"\")","v":"Premium Fuel"},{"$f":"IF(B18=\"\",\"\",VLOOKUP(B18,A_ITEMS_ALL,11,FALSE))","v":"J"},null,{"$f":"IF(VLOOKUP($B$17,C_WORKBENCH_ALL,2,FALSE)=\"\",\"\",VLOOKUP($B$17,C_WORKBENCH_ALL,2,FALSE))","v":2},{"$f":"IF(B18<>\"\",IF(C18=\"N\",VLOOKUP(B18,A_ITEMS_ALL,10,FALSE),\"\"),\"\")","v":""},{"$f":"IF(C18=\"J\",\"\",IF(B18=\"\",\"\",F18*E18))","v":""},{"$f":"IF(I18=\"\",\"\",MAX($H$8:H17)+1)","v":""},null,null,null,null,null,"",null,null,null,null,null,null,null,null,"Cost","Inkoopprijs"]
["A1",null,null,{"$f":"_xlfn.IFNA(IF(B18=\"\",\"\",IF(VLOOKUP($B18,A_ITEMS_ALL,3,FALSE)=0,\"\",VLOOKUP($B18,A_ITEMS_ALL,3,FALSE))),\"\")","v":"Cutlass"},{"$f":"IF(B18=\"\",\"\",IF(VLOOKUP($B18,A_ITEMS_ALL,4,FALSE)=0,\"\",VLOOKUP($B18,A_ITEMS_ALL,4,FALSE)))","v":1},{"$f":"_xlfn.IFNA(VLOOKUP(D19,A_ITEMS_ALL,10,FALSE),\"\")","v":23227},{"$f":"IF(F19=\"\",\"\",SUM($F19/_xlfn.IFNA(IF($C18=\"N\",\"\",VLOOKUP($B18,A_ITEMS_ALL,2,FALSE)),\"\"))*$E18)","v":11613.5},{"$f":"IF(I19=\"\",\"\",MAX($H$8:H18)+1)","v":""},null,null,null,null,null,"",null,null,null,null,null,null,null,null,"Relative purchase price","Relatieve inkoopprijs"]
["A2",null,null,{"$f":"_xlfn.IFNA(IF(B18=\"\",\"\",IF(VLOOKUP($B18,A_ITEMS_ALL,5,FALSE)=0,\"\",VLOOKUP($B18,A_ITEMS_ALL,5,FALSE))),\"\")","v":"Boxed Drip Coffee"},{"$f":"IF(B18=\"\",\"\",IF(VLOOKUP($B18,A_ITEMS_ALL,6,FALSE)=0,\"\",VLOOKUP($B18,A_ITEMS_ALL,6,FALSE)))","v":1},{"$f":"_xlfn.IFNA(VLOOKUP(D20,A_ITEMS_ALL,10,FALSE),\"\")","v":219162},{"$f":"IF(F20=\"\",\"\",SUM($F20/_xlfn.IFNA(IF($C18=\"N\",\"\",VLOOKUP($B18,A_ITEMS_ALL,2,FALSE)),\"\"))*$E18)","v":109581},{"$f":"IF(I20=\"\",\"\",MAX($H$8:H19)+1)","v":""},null,null,null,null,null,"",null,null,null,null,null,null,null,null,"Type","Type"]
["A3",null,null,{"$f":"_xlfn.IFNA(IF(B18=\"\",\"\",IF(VLOOKUP($B18,A_ITEMS_ALL,7,FALSE)=0,\"\",VLOOKUP($B18,A_ITEMS_ALL,7,FALSE))),\"\")","v":""},{"$f":"IF(B18=\"\",\"\",IF(VLOOKUP($B18,A_ITEMS_ALL,8,FALSE)=0,\"\",VLOOKUP($B18,A_ITEMS_ALL,8,FALSE)))","v":""},{"$f":"_xlfn.IFNA(VLOOKUP(D21,A_ITEMS_ALL,10,FALSE),\"\")","v":""},{"$f":"IF(F21=\"\",\"\",SUM($F21/_xlfn.IFNA(IF($C18=\"N\",\"\",VLOOKUP($B18,A_ITEMS_ALL,2,FALSE)),\"\"))*$E18)","v":""},{"$f":"IF(I21=\"\",\"\",MAX($H$8:H20)+1)","v":""},null,null,null,null,null,"",null,null,null,null,null,null,null,null,"Product","Produkt"]
["B",{"$f":"IFERROR(IF(VLOOKUP($B$17,C_WORKBENCH_ALL,5,FALSE)=\"\",\"\",VLOOKUP($B$17,C_WORKBENCH_ALL,5,FALSE)),\"\")","v":"Basic Ammo Production Parts"},{"$f":"IF(B22=\"\",\"\",VLOOKUP(B22,A_ITEMS_ALL,11,FALSE))","v":"N"},null,{"$f":"IF(VLOOKUP($B$17,C_WORKBENCH_ALL,4,FALSE)=\"\",\"\",VLOOKUP($B$17,C_WORKBENCH_ALL,4,FALSE))","v":3},{"$f":"IFERROR(VLOOKUP(B22,A_ITEMS_ALL,10,FALSE),\"\")","v":25918},{"$f":"IFERROR(IF(B22=\"\",\"\",F22*E22),\"\")","v":77754},{"$f":"IF(I22=\"\",\"\",MAX($H$8:H21)+1)","v":""},null,null,null,null,null,"",null,null,null,null,null,null,null,null,"Purchase price","Inkoop prijs"]
["C",{"$f":"IFERROR(IF(VLOOKUP($B$17,C_WORKBENCH_ALL,7,FALSE)=\"\",\"\",VLOOKUP($B$17,C_WORKBENCH_ALL,7,FALSE)),\"\")","v":"Gunpowder"},{"$f":"IF(B23=\"\",\"\",VLOOKUP(B23,A_ITEMS_ALL,11,FALSE))","v":"N"},null,{"$f":"IF(VLOOKUP($B$17,C_WORKBENCH_ALL,6,FALSE)=\"\",\"\",VLOOKUP($B$17,C_WORKBENCH_ALL,6,FALSE))","v":3},{"$f":"IFERROR(VLOOKUP(B23,A_ITEMS_ALL,10,FALSE),\"\")","v":16905},{"$f":"IFERROR(IF(B23=\"\",\"\",F23*E23),\"\")","v":50715},{"$f":"IF(I23=\"\",\"\",MAX($H$8:H22)+1)","v":""},null,null,null,null,null,"",null,null,null,null,null,null,null,null,"Sale Price","Verkoop prijs"]
["D",{"$f":"IFERROR(IF(VLOOKUP($B$17,C_WORKBENCH_ALL,9,FALSE)=\"\",\"\",VLOOKUP($B$17,C_WORKBENCH_ALL,9,FALSE)),\"\")","v":""},{"$f":"IF(B24=\"\",\"\",VLOOKUP(B24,A_ITEMS_ALL,11,FALSE))","v":""},null,{"$f":"IF(VLOOKUP($B$17,C_WORKBENCH_ALL,8,FALSE)=\"\",\"\",VLOOKUP($B$17,C_WORKBENCH_ALL,8,FALSE))","v":""},{"$f":"IFERROR(VLOOKUP(B24,A_ITEMS_ALL,10,FALSE),\"\")","v":""},"",{"$f":"IF(I24=\"\",\"\",MAX($H$8:H23)+1)","v":""},null,null,null,null,null,"",null,null,null,null,null,null,null,null,"Profit","Winst"]
["E",{"$f":"IFERROR(IF(VLOOKUP($B$17,C_WORKBENCH_ALL,11,FALSE)=\"\",\"\",VLOOKUP($B$17,C_WORKBENCH_ALL,11,FALSE)),\"\")","v":""},{"$f":"IF(B25=\"\",\"\",VLOOKUP(B25,A_ITEMS_ALL,11,FALSE))","v":""},null,{"$f":"IFERROR(IF(VLOOKUP($B$17,C_WORKBENCH_ALL,10,FALSE)=\"\",\"\",VLOOKUP($B$17,C_WORKBENCH_ALL,10,FALSE)),\"\")","v":""},{"$f":"IFERROR(VLOOKUP(B25,A_ITEMS_ALL,10,FALSE),\"\")","v":""},"",{"$f":"IF(I25=\"\",\"\",MAX($H$8:H24)+1)","v":""},null,null,null,null,null,"",null,null,null,null,null,null,null,null,"Author:","Auteur:"]
["OP","Premium Vest Repair Combo","     PHARMACY",null,null,null,{"$f":"SUM(G27:G34)","v":528794},{"$f":"IF(I26=\"\",\"\",MAX($H$8:H25)+1)","v":3},"OP","Premium Vest Repair Combo",null,528794,550800,22006,null,null,null,null,null,null,null,null,"Date:","Datum:"]
["A",{"$f":"IFERROR(IF(VLOOKUP($B$26,D_PHARMACY_ALL,3,FALSE)=\"\",\"\",VLOOKUP($B$26,D_PHARMACY_ALL,3,FALSE)),\"\")","v":"Mobile cable"},{"$f":"IF(B27=\"\",\"\",VLOOKUP(B27,A_ITEMS_ALL,11,FALSE))","v":"N"},null,{"$f":"IF(VLOOKUP($B$26,D_PHARMACY_ALL,2,FALSE)=\"\",\"\",VLOOKUP($B$26,D_PHARMACY_ALL,2,FALSE))","v":1},{"$f":"IF(B27<>\"\",IF(C27=\"N\",VLOOKUP(B27,A_ITEMS_ALL,10,FALSE),\"\"),\"\")","v":469791},{"$f":"IF(C27=\"J\",\"\",IF(B27=\"\",\"\",F27*E27))","v":469791},{"$f":"IF(I27=\"\",\"\",MAX($H$8:H26)+1)","v":""},null,null,null,null,null,"",null,null,null,null,null,null,null,null,"Email:","E-mail:"]
["A1",null,null,{"$f":"_xlfn.IFNA(IF(B27=\"\",\"\",IF(VLOOKUP($B27,A_ITEMS_ALL,3,FALSE)=0,\"\",VLOOKUP($B27,A_ITEMS_ALL,3,FALSE))),\"\")","v":""},{"$f":"IF(B27=\"\",\"\",IF(VLOOKUP($B27,A_ITEMS_ALL,4,FALSE)=0,\"\",VLOOKUP($B27,A_ITEMS_ALL,4,FALSE)))","v":""},{"$f":"_xlfn.IFNA(VLOOKUP(D28,A_ITEMS_ALL,10,FALSE),\"\")","v":""},{"$f":"IF(F28=\"\",\"\",SUM($F28/_xlfn.IFNA(IF($C27=\"N\",\"\",VLOOKUP($B27,A_ITEMS_ALL,2,FALSE)),\"\"))*$E27)","v":""},{"$f":"IF(I28=\"\",\"\",MAX($H$8:H27)+1)","v":""},null,null,null,null,null,"",null,null,null,null,null,null,null,null,"Normal display","Normale weergave"]
["A2",null,null,{"$f":"_xlfn.IFNA(IF(B27=\"\",\"\",IF(VLOOKUP($B27,A_ITEMS_ALL,5,FALSE)=0,\"\",VLOOKUP($B27,A_ITEMS_ALL,5,FALSE))),\"\")","v":""},{"$f":"IF(B27=\"\",\"\",IF(VLOOKUP($B27,A_ITEMS_ALL,6,FALSE)=0,\"\",VLOOKUP($B27,A_ITEMS_ALL,6,FALSE)))","v":""},{"$f":"_xlfn.IFNA(VLOOKUP(D29,A_ITEMS_ALL,10,FALSE),\"\")","v":""},{"$f":"IF(F29=\"\",\"\",SUM($F29/_xlfn.IFNA(IF($C27=\"N\",\"\",VLOOKUP($B27,A_ITEMS_ALL,2,FALSE)),\"\"))*$E27)","v":""},{"$f":"IF(I29=\"\",\"\",MAX($H$8:H28)+1)","v":""},null,null,null,null,null,"",null,null,null,null,null,null,null,null,"Full screen","Volledig scherm"]
["A3",null,null,{"$f":"_xlfn.IFNA(IF(B27=\"\",\"\",IF(VLOOKUP($B27,A_ITEMS_ALL,7,FALSE)=0,\"\",VLOOKUP($B27,A_ITEMS_ALL,7,FALSE))),\"\")","v":""},{"$f":"IF(B27=\"\",\"\",IF(VLOOKUP($B27,A_ITEMS_ALL,8,FALSE)=0,\"\",VLOOKUP($B27,A_ITEMS_ALL,8,FALSE)))","v":""},{"$f":"_xlfn.IFNA(VLOOKUP(D30,A_ITEMS_ALL,10,FALSE),\"\")","v":""},{"$f":"IF(F30=\"\",\"\",SUM($F30/_xlfn.IFNA(IF($C27=\"N\",\"\",VLOOKUP($B27,A_ITEMS_ALL,2,FALSE)),\"\"))*$E27)","v":""},{"$f":"IF(I30=\"\",\"\",MAX($H$8:H29)+1)","v":""},null,null,null,null,null,"",null,null,null,null,null,null,null,null,"Dutch","Nederlands"]
["B",{"$f":"IFERROR(IF(VLOOKUP($B$26,D_PHARMACY_ALL,5,FALSE)=\"\",\"\",VLOOKUP($B$26,D_PHARMACY_ALL,5,FALSE)),\"\")","v":"High-Power Crusher"},{"$f":"IF(B31=\"\",\"\",VLOOKUP(B31,A_ITEMS_ALL,11,FALSE))","v":"N"},null,{"$f":"IF(VLOOKUP($B$26,D_PHARMACY_ALL,4,FALSE)=\"\",\"\",VLOOKUP($B$26,D_PHARMACY_ALL,4,FALSE))","v":1},{"$f":"IFERROR(VLOOKUP(B31,A_ITEMS_ALL,10,FALSE),\"\")","v":31558},{"$f":"IFERROR(IF(B31=\"\",\"\",F31*E31),\"\")","v":31558},{"$f":"IF(I31=\"\",\"\",MAX($H$8:H30)+1)","v":""},null,null,null,null,null,"",null,null,null,null,null,null,null,null,"English","Engels"]
["C",{"$f":"IFERROR(IF(VLOOKUP($B$26,D_PHARMACY_ALL,7,FALSE)=\"\",\"\",VLOOKUP($B$26,D_PHARMACY_ALL,7,FALSE)),\"\")","v":"Aramid Fiber"},{"$f":"IF(B32=\"\",\"\",VLOOKUP(B32,A_ITEMS_ALL,11,FALSE))","v":"N"},null,{"$f":"IF(VLOOKUP($B$26,D_PHARMACY_ALL,6,FALSE)=\"\",\"\",VLOOKUP($B$26,D_PHARMACY_ALL,6,FALSE))","v":1},{"$f":"IFERROR(VLOOKUP(B32,A_ITEMS_ALL,10,FALSE),\"\")","v":22895},{"$f":"IFERROR(IF(B32=\"\",\"\",F32*E32),\"\")","v":22895},{"$f":"IF(I32=\"\",\"\",MAX($H$8:H31)+1)","v":""},null,null,null,null,null,"",null,null,null,null,null,null,null,null,"Unlocked","Ontgrendeld"]
["D",{"$f":"IFERROR(IF(VLOOKUP($B$26,D_PHARMACY_ALL,9,FALSE)=\"\",\"\",VLOOKUP($B$26,D_PHARMACY_ALL,9,FALSE)),\"\")","v":"Wood Board"},{"$f":"IF(B33=\"\",\"\",VLOOKUP(B33,A_ITEMS_ALL,11,FALSE))","v":"N"},null,{"$f":"IF(VLOOKUP($B$26,D_PHARMACY_ALL,8,FALSE)=\"\",\"\",VLOOKUP($B$26,D_PHARMACY_ALL,8,FALSE))","v":1},{"$f":"IFERROR(VLOOKUP(B33,A_ITEMS_ALL,10,FALSE),\"\")","v":4550},4550,{"$f":"IF(I33=\"\",\"\",MAX($H$8:H32)+1)","v":""},null,null,null,null,null,"",null,null,null,null,null,null,null,null,"Secured","Beveiligd"]
["E",{"$f":"IFERROR(IF(VLOOKUP($B$26,D_PHARMACY_ALL,11,FALSE)=\"\",\"\",VLOOKUP($B$26,D_PHARMACY_ALL,11,FALSE)),\"\")","v":""},{"$f":"IF(B34=\"\",\"\",VLOOKUP(B34,A_ITEMS_ALL,11,FALSE))","v":""},null,{"$f":"IFERROR(IF(VLOOKUP($B$26,D_PHARMACY_ALL,10,FALSE)=\"\",\"\",VLOOKUP($B$26,D_PHARMACY_ALL,10,FALSE)),\"\")","v":""},{"$f":"IFERROR(VLOOKUP(B34,A_ITEMS_ALL,10,FALSE),\"\")","v":""},"",{"$f":"IF(I34=\"\",\"\",MAX($H$8:H33)+1)","v":""},null,null,null,null,null,""]
["OA","Heavy Assault Vest","     ARMOR BENCH",null,null,null,{"$f":"SUM(G36:G43)","v":200875},{"$f":"IF(I35=\"\",\"\",MAX($H$8:H34)+1)","v":4},"OA","Heavy Assault Vest",null,200875,322200,121325]
["A",{"$f":"IFERROR(IF(VLOOKUP($B$35,E_ARMOR_ALL,3,FALSE)=\"\",\"\",VLOOKUP($B$35,E_ARMOR_ALL,3,FALSE)),\"\")","v":"Titantium Alloy"},{"$f":"IF(B36=\"\",\"\",VLOOKUP(B36,A_ITEMS_ALL,11,FALSE))","v":"J"},null,{"$f":"IF(VLOOKUP($B$35,E_ARMOR_ALL,2,FALSE)=\"\",\"\",VLOOKUP($B$35,E_ARMOR_ALL,2,FALSE))","v":3},{"$f":"IF(B36<>\"\",IF(C36=\"N\",VLOOKUP(B36,A_ITEMS_ALL,10,FALSE),\"\"),\"\")","v":""},{"$f":"IF(C36=\"J\",\"\",IF(B36=\"\",\"\",F36*E36))","v":""},{"$f":"IF(I36=\"\",\"\",MAX($H$8:H35)+1)","v":""},null,null,null,null,null,""]
["A1",null,null,{"$f":"_xlfn.IFNA(IF(B36=\"\",\"\",IF(VLOOKUP($B36,A_ITEMS_ALL,3,FALSE)=0,\"\",VLOOKUP($B36,A_ITEMS_ALL,3,FALSE))),\"\")","v":"Programmable processor"},{"$f":"IF(B36=\"\",\"\",IF(VLOOKUP($B36,A_ITEMS_ALL,4,FALSE)=0,\"\",VLOOKUP($B36,A_ITEMS_ALL,4,FALSE)))","v":1},{"$f":"_xlfn.IFNA(VLOOKUP(D37,A_ITEMS_ALL,10,FALSE),\"\")","v":169824},{"$f":"IF(F37=\"\",\"\",SUM($F37/_xlfn.IFNA(IF($C36=\"N\",\"\",VLOOKUP($B36,A_ITEMS_ALL,2,FALSE)),\"\"))*$E36)","v":127368},{"$f":"IF(I37=\"\",\"\",MAX($H$8:H36)+1)","v":""},null,null,null,null,null,""]
["A2",null,null,{"$f":"_xlfn.IFNA(IF(B36=\"\",\"\",IF(VLOOKUP($B36,A_ITEMS_ALL,5,FALSE)=0,\"\",VLOOKUP($B36,A_ITEMS_ALL,5,FALSE))),\"\")","v":"Orange Energy Gel"},{"$f":"IF(B36=\"\",\"\",IF(VLOOKUP($B36,A_ITEMS_ALL,6,FALSE)=0,\"\",VLOOKUP($B36,A_ITEMS_ALL,6,FALSE)))","v":1},{"$f":"_xlfn.IFNA(VLOOKUP(D38,A_ITEMS_ALL,10,FALSE),\"\")","v":18756},{"$f":"IF(F38=\"\",\"\",SUM($F38/_xlfn.IFNA(IF($C36=\"N\",\"\",VLOOKUP($B36,A_ITEMS_ALL,2,FALSE)),\"\"))*$E36)","v":14067},{"$f":"IF(I38=\"\",\"\",MAX($H$8:H37)+1)","v":""},null,null,null,null,null,""]
["A3",null,null,{"$f":"_xlfn.IFNA(IF(B36=\"\",\"\",IF(VLOOKUP($B36,A_ITEMS_ALL,7,FALSE)=0,\"\",VLOOKUP($B36,A_ITEMS_ALL,7,FALSE))),\"\")","v":""},{"$f":"IF(B36=\"\",\"\",IF(VLOOKUP($B36,A_ITEMS_ALL,8,FALSE)=0,\"\",VLOOKUP($B36,A_ITEMS_ALL,8,FALSE)))","v":""},{"$f":"_xlfn.IFNA(VLOOKUP(D39,A_ITEMS_ALL,10,FALSE),\"\")","v":""},{"$f":"IF(F39=\"\",\"\",SUM($F39/_xlfn.IFNA(IF($C36=\"N\",\"\",VLOOKUP($B36,A_ITEMS_ALL,2,FALSE)),\"\"))*$E36)","v":""},{"$f":"IF(I39=\"\",\"\",MAX($H$8:H38)+1)","v":""},null,null,null,null,null,""]
["B",{"$f":"IFERROR(IF(VLOOKUP($B$35,E_ARMOR_ALL,5,FALSE)=\"\",\"\",VLOOKUP($B$35,E_ARMOR_ALL,5,FALSE)),\"\")","v":"Aramid Fiber"},{"$f":"IF(B40=\"\",\"\",VLOOKUP(B40,A_ITEMS_ALL,11,FALSE))","v":"N"},null,{"$f":"IF(VLOOKUP($B$35,E_ARMOR_ALL,4,FALSE)=\"\",\"\",VLOOKUP($B$35,E_ARMOR_ALL,4,FALSE))","v":2},{"$f":"IFERROR(VLOOKUP(B40,A_ITEMS_ALL,10,FALSE),\"\")","v":22895},{"$f":"IFERROR(IF(B40=\"\",\"\",F40*E40),\"\")","v":45790},{"$f":"IF(I40=\"\",\"\",MAX($H$8:H39)+1)","v":""},null,null,null,null,null,""]
["C",{"$f":"IFERROR(IF(VLOOKUP($B$35,E_ARMOR_ALL,7,FALSE)=\"\",\"\",VLOOKUP($B$35,E_ARMOR_ALL,7,FALSE)),\"\")","v":"Wood Board"},{"$f":"IF(B41=\"\",\"\",VLOOKUP(B41,A_ITEMS_ALL,11,FALSE))","v":"N"},null,{"$f":"IF(VLOOKUP($B$35,E_ARMOR_ALL,6,FALSE)=\"\",\"\",VLOOKUP($B$35,E_ARMOR_ALL,6,FALSE))","v":3},{"$f":"IFERROR(VLOOKUP(B41,A_ITEMS_ALL,10,FALSE),\"\")","v":4550},{"$f":"IFERROR(IF(B41=\"\",\"\",F41*E41),\"\")","v":13650},{"$f":"IF(I41=\"\",\"\",MAX($H$8:H40)+1)","v":""},null,null,null,null,null,""]
["D",{"$f":"IFERROR(IF(VLOOKUP($B$35,E_ARMOR_ALL,9,FALSE)=\"\",\"\",VLOOKUP($B$35,E_ARMOR_ALL,9,FALSE)),\"\")","v":""},{"$f":"IF(B42=\"\",\"\",VLOOKUP(B42,A_ITEMS_ALL,11,FALSE))","v":""},null,{"$f":"IF(VLOOKUP($B$35,E_ARMOR_ALL,8,FALSE)=\"\",\"\",VLOOKUP($B$35,E_ARMOR_ALL,8,FALSE))","v":""},{"$f":"IFERROR(VLOOKUP(B42,A_ITEMS_ALL,10,FALSE),\"\")","v":""},"",{"$f":"IF(I42=\"\",\"\",MAX($H$8:H41)+1)","v":""},null,null,null,null,null,""]
["E",{"$f":"IFERROR(IF(VLOOKUP($B$35,E_ARMOR_ALL,11,FALSE)=\"\",\"\",VLOOKUP($B$35,E_ARMOR_ALL,11,FALSE)),\"\")","v":""},{"$f":"IF(B43=\"\",\"\",VLOOKUP(B43,A_ITEMS_ALL,11,FALSE))","v":""},null,{"$f":"IFERROR(IF(VLOOKUP($B$35,E_ARMOR_ALL,10,FALSE)=\"\",\"\",VLOOKUP($B$35,E_ARMOR_ALL,10,FALSE)),\"\")","v":""},{"$f":"IFERROR(VLOOKUP(B43,A_ITEMS_ALL,10,FALSE),\"\")","v":""},"",{"$f":"IF(I43=\"\",\"\",MAX($H$8:H42)+1)","v":""},null,null,null,null,null,""]
[null,"Total Inkoop",null,null,null,null,{"$f":"SUM(G35+G26+G17+G8)","v":1068734.5},{"$f":"IF(I44=\"\",\"\",MAX($H$8:H43)+1)","v":""},null,null,null,null,null,""]
["Author:","Ad Tiegelaar",null,null,null,null,null,{"$f":"IF(I45=\"\",\"\",MAX($H$8:H44)+1)","v":""},null,null,null,null,null,""]
["Email:","2025-08-02",null,null,null,null,null,{"$f":"IF(I46=\"\",\"\",MAX($H$8:H45)+1)","v":""},null,null,null,null,null,""]
["E-mail:","admin@tiegelaar.com",null,null,null,null,null,{"$f":"IF(I47=\"\",\"\",MAX($H$8:H46)+1)","v":""},null,null,null,null,null,""]
[]
[]
[]
[]
[]
[]
[]
[]
[]
[]
[]
[]
[]
[]
[]
[]
[]
[]
[]
[]
[]
[]
[]
[]
[]
[]
[]
[]
[]
["Auteur:"]
["E-mail:"]

{"sheet":"ITEMS","index":1,"n_rows":38,"n_cols":11,"rows_kept":38,"cut":false,"hidden":false,"merged":[]}
["ITEMS","##","1e","#","2e","#","3e","#","ITEMS","Price","Constructed Y/N"]
["Boxed Drip Coffee",null,null,null,null,null,null,null,{"$f":"A2","v":"Boxed Drip Coffee"},219162,"N"]
["Special Steel",null,null,null,null,null,null,null,{"$f":"A3","v":"Special Steel"},56337,"N"]
["Programmable Processor",null,null,null,null,null,null,null,"Programmable Processor",169824,"N"]
["Polyethylene Fiber",null,null,null,null,null,null,null,"Polyethylene Fiber",83697,"N"]
["Aramid Fiber",null,null,null,null,null,null,null,"Aramid Fiber",22895,"N"]
["High-Power Crusher",null,null,null,null,null,null,null,"High-Power Crusher",31558,"N"]
["Cutlass",null,null,null,null,null,null,null,"Cutlass",23227,"N"]
["Hammer Drill",null,null,null,null,null,null,null,"Hammer Drill",20090,"N"]
["High-precision Digital Caliper",null,null,null,null,null,null,null,"High-precision Digital Caliper",16898,"N"]
["Basic Fuel",null,null,null,null,null,null,null,"Basic Fuel",16912,"N"]
["Basic Ammo Production Parts",null,null,null,null,null,null,null,"Basic Ammo Production Parts",25918,"N"]
["Gunpowder",null,null,null,null,null,null,null,"Gunpowder",16905,"N"]
["Orange Energy Gel",null,null,null,null,null,null,null,"Orange Energy Gel",18756,"N"]
["Angle Grinder",null,null,null,null,null,null,null,"Angle Grinder",4581,"N"]
["Memory Card",null,null,null,null,null,null,null,"Memory Card",7561,"N"]
["Breaching Hammer",null,null,null,null,null,null,null,"Breaching Hammer",4198,"N"]
["Audio Player",null,null,null,null,null,null,null,"Audio Player",8723,"N"]
["Handsaw",null,null,null,null,null,null,null,"Handsaw",11606,"N"]
["Seasoning Set",null,null,null,null,null,null,null,"Seasoning Set",7664,"N"]
["Wood Board",null,null,null,null,null,null,null,"Wood Board",4550,"N"]
["LED Light",null,null,null,null,null,null,null,"LED Light",3609,"N"]
["Duct Tape",null,null,null,null,null,null,null,"Duct Tape",1276,"N"]
["Manometer",null,null,null,null,null,null,null,"Manometer",4304,"N"]
["Mobile cable",null,null,null,null,null,null,null,"Mobile cable",469791,"N"]
["Cordless Portable Drill",null,null,null,null,null,null,null,"Cordless Portable Drill",28185,"N"]
["Damaged Thermal Imager",null,null,null,null,null,null,null,"Damaged Thermal Imager",50880,"N"]
["Lens",null,null,null,null,null,null,null,"Lens",112396,"N"]
["Shiny Pirate Gold Coin",null,null,null,null,null,null,null,"Shiny Pirate Gold Coin",58234,"N"]
["Premium Coffee beans",null,null,null,null,null,null,null,"Premium Coffee beans",null,"N"]
["Ceramic Amor",null,null,null,null,null,null,null,"Ceramic Amor",36603,"N"]
["Engine Oil",null,null,null,null,null,null,null,"Engine Oil",22975,"N"]
["Polymer Fabric",null,null,null,null,null,null,null,"Polymer Fabric",16369,"N"]
["Firtearm Parts",null,null,null,null,null,null,null,"Firtearm Parts",17654,"N"]
["Intermediate Ammo Production Parts",4,"E-Type Canister",1,"Hammer Drill",1,null,null,"Intermediate Ammo Production Parts",null,"J"]
["Titantium Alloy",4,"Programmable processor",1,"Orange Energy Gel",1,null,null,"Titantium Alloy",null,"J"]
["Premium Fuel",4,"Cutlass",1,"Boxed Drip Coffee",1,null,null,"Premium Fuel",null,"J"]
["Mechanical Worker Bee Model",4,"Shiny Pirate Gold Coin",1,"Premium Coffee beans",1,null,null,"Mechanical Worker Bee Model",null,"J"]

{"sheet":"CYBER WARFARE DIVISION","index":2,"n_rows":4,"n_cols":9,"rows_kept":4,"cut":false,"hidden":false,"merged":[]}
["CYBER WARFARE DIVISION"]
["White Phosphor Thermal Scope",2,"Damaged Thermal Imager",3,"Firtearm Parts",4,"High-precision Digital Caliper"," 08-28-2025"]
["Sandstorm Vertical Compensator",1,"Firtearm Parts",1,"Handsaw",2,"Wood Board"]
["Adv. Thermal Fusion Holograsphic Sight",1,"Damaged Thermal Imager",1,"Firtearm Parts",3,"Wood Board",2,"LED Light"]

{"sheet":"WORKBENCH","index":3,"n_rows":34,"n_cols":9,"rows_kept":34,"cut":false,"hidden":false,"merged":[]}
["WORKBENCH"]
["7.62x51mm M62",3,"Premium Fuel",1,"Basic Ammo Production Parts",1,"Gunpowder",3,"Basic Fuel"]
["5.56x45mm M995",2,"Premium Fuel",2,"Basic Ammo Production Parts",2,"Angle Grinder"]
["6.8x51mm Hybrid",2,"Premium Fuel",3,"Basic Ammo Production Parts",3,"Gunpowder"]
[".357 Magnum Tier 4 (120 stuks)"]
[".45 ACP Tier 4 (120 stuks)"]
[".50 AE Tier 4 (120 stuks)"]
["12 Gauge Slug Tier 4 (120 stuks)"]
["12 Gauge Dragon Tier 4 (120 stuks)"]
["12.7x55mm Tier 5 (120 stuks)"]
["12.7x55mm PD12 Tier 4 (120 stuks)"]
["12.7x55mm PS12 Tier 4 (120 stuks)"]
["5.45x39mm Tier 5 (120 stuks)"]
["5.45x39mm Tier 4 (120 stuks)"]
["5.56x45mm Tier 4 (120 stuks)"]
["5.7x28mm Tier 5 (120 stuks)"]
["5.7x28mm Tier 4 (120 stuks)"]
["5.8x42mm Tier 5 (120 stuks)"]
["5.8x42mm Tier 4 (120 stuks)"]
["6.8x51mm Tier 4 (120 stuks)"]
["7.62x39mm Tier 5 (120 stuks)"]
["7.62x39mm Tier 4 (120 stuks)"]
["7.62x51mm Tier 4 (120 stuks)"]
["7.62x54mm Tier 5 (120 stuks)"]
["7.62x54mm Tier 4 (120 stuks)"]
["9x19mm Tier 4 (120 stuks)"]
["9x39mm Tier 5 (120 stuks)"]
["9x39mm Tier 4 (120 stuks)"]
["4.6x30mm Tier 5 (120 stuks)"]
["4.6x30mm Tier 4 (120 stuks)"]
[".300 BLK Tier 5 (120 stuks)"]
[".300 BLK Tier 4 (120 stuks)"]
["Arrow Tier 4 (120 stuks)"]
["Arrow Tier 5 (120 stuks)"]

{"sheet":"PHARMACY","index":4,"n_rows":4,"n_cols":9,"rows_kept":4,"cut":false,"hidden":false,"merged":[]}
["PHARMACY"]
["Premium Vest Repair Combo",1,"Mobile cable",1,"High-Power Crusher",1,"Aramid Fiber",1,"Wood Board"]
["Precision Vest Repair Kit",3,"Special Steel",1,"Cordless Portable Drill"]
["Premium Helmet Repair Combo",1,"Mobile cable",1,"Cordless Portable Drill",1,"Aramid Fiber",1,"Wood Board"]

{"sheet":"ARMOR BENCH","index":5,"n_rows":32,"n_cols":9,"rows_kept":32,"cut":false,"hidden":false,"merged":[]}
["ARMOR BENCH"]
["FS Composite Vest",3,"Titantium Alloy",2,"High-Power Crusher",2,"Wood Board"]
["Heavy Assault Vest",3,"Titantium Alloy",2,"Aramid Fiber",3,"Wood Board"]
["DICH-1 Tactical Helmet",2,"Titantium Alloy",1,"High-Power Crusher",1,"Wood Board"]
["GN Heavy NV Helmet",1,"Lens",2,"High-Power Crusher",1,"Aramid Fiber",3,"Wood Board"]
["Elite Vest Tier5"]
["Hvk-2 Vest Tier5"]
["HMP Special Ops Vest Tier4"]
["Assault Vest Tier4"]
["DT-AVS Vest Tier4"]
["MK-2 Tactical Vest Tier4"]
["DRC Advanced Chest Rig Tier4"]
["GIR Field Rig Tier4"]
["Assault Tactical Vest Rig Tier4"]
["Raider Tactical Vest Rig Tier4"]
["Mask-1 Iron Helmet Tier5"]
["H09 Anti-Riot Helmet Tier5"]
["GN Heavy Helmet Tier5"]
["GN Endurance Heavy NV Helmet Tier5"]
["DICH Training Helmet Tier4"]
["D6 Tactical Helmet Tier4"]
["GT1 Tactical Helmet Tier4"]
["MHS Tactical Helmet Tier4"]
["ALS Load System Bag Tier5"]
["HLS-2 Heavy Backpack Bag Tier5"]
["D3 Tactical Climbing Bag Tier5"]
["GT5 Field Backpack Bag Tier5"]
["MAP Recon Backpack Bag Tier4"]
["Field Hiking Backpack Bag Tier4"]
["D2 Tactical Climbing Bag Tier4"]
["GT1 Outdoor Climbing Bag Tier4"]
["Survival Tactical Backpack Bag Tier4"]

{"sheet":"VARIABLES","index":6,"n_rows":29,"n_cols":2,"rows_kept":29,"cut":false,"hidden":false,"merged":[]}
["Variabelen"]
["imgPath","\\\\SINAAD-DS\\Algemeen\\Ad\\Arma Reforger - Delta Force\\DELTAFORCE_Afbeeldingen\\"]
[]
["DELTAFORCE production","DELTAFORCE produktie"]
["Composition of the products to be produced","Samenstelling van de te produceren produkten"]
[]
["Select a type. You can place it anywhere you like. The profit will appear when the sales price is entered.\nYou can specify the path to the images in the Lists worksheet in field B183.","Selecteer een type. Je kunt het plaatsen waar je wilt. De winst verschijnt als de verkoopprijs is ingevuld.\nHet pad naar de afbeeldingen kun je opgeven in het werkblad Lijsten in veld B183"]
["Total","Totaal"]
["Part","Onderdeel"]
["Product","Product"]
["Y/N","J/N"]
["Composed:","Samengesteld uit:"]
["Number","Aantal"]
["Cost","Inkoopprijs"]
["Relative purchase price","Relatieve inkoopprijs"]
["Type","Type"]
["Product","Produkt"]
["Purchase price","Inkoop prijs"]
["Sale Price","Verkoop prijs"]
["Profit","Winst"]
["Author:","Auteur:"]
["Date:","Datum:"]
["Email:","E-mail:"]
["Normal display","Normale weergave"]
["Full screen","Volledig scherm"]
["Dutch","Nederlands"]
["English","Engels"]
["Unlocked","Ontgrendeld"]
["Secured","Beveiligd"]